[Event "January 9 Late 2024"]
[Site "https://www.chess.com"]
[Date "2024.01.09"]
[Round "3"]
[White "Kekic, Armin"]
[Black "Espinoza Villanueva, Rodrigo"]
[Result "0-1"]
[Board "146"]
[TimeControl "180+1"]
[WhiteFideId "14401274"]
[BlackFideId "5140188"]
[WhiteElo "2342"]
[BlackElo "2576"]
[WhiteTeam "BIH"]
[BlackTeam "MEX"]
[WhiteClock "0:00:00"]
[BlackClock "0:00:07"]

1. e4 {[%clk 0:03:00]}  e5 {[%clk 0:02:53]} 2. Nf3 {[%clk 0:03:00]}  Nc6 {[%clk 0:02:52]} 3. Bb5 {[%clk 0:03:01]}  a6 {[%clk 0:02:51]} 4. Ba4 {[%clk 0:03:01]}  b5 {[%clk 0:02:49]} 5. Bb3 {[%clk 0:02:59]}  Nf6 {[%clk 0:02:50]} 6. d3 {[%clk 0:02:58]}  Be7 {[%clk 0:02:48]} 7. O-O {[%clk 0:02:57]}  O-O {[%clk 0:02:48]} 8. a4 {[%clk 0:02:57]}  Bb7 {[%clk 0:02:46]} 9. Nc3 {[%clk 0:02:57]}  b4 {[%clk 0:02:34]} 10. Nd5 {[%clk 0:02:56]}  Na5 {[%clk 0:02:35]} 11. Nxe7+ {[%clk 0:02:46]}  Qxe7 {[%clk 0:02:36]} 12. c3 {[%clk 0:02:45]}  Nxb3 {[%clk 0:02:31]} 13. Qxb3 {[%clk 0:02:44]}  d5 {[%clk 0:02:32]} 14. Qxb4 {[%clk 0:02:41]}  c5 {[%clk 0:02:26]} 15. Qa3 {[%clk 0:02:40]}  dxe4 {[%clk 0:02:25]} 16. dxe4 {[%clk 0:02:40]}  Bxe4 {[%clk 0:02:25]} 17. Ng5 {[%clk 0:02:34]}  Bb7 {[%clk 0:02:21]} 18. Be3 {[%clk 0:02:34]}  Rac8 {[%clk 0:02:19]} 19. Nh3 {[%clk 0:01:37]}  Nd5 {[%clk 0:01:56]} 20. Rfe1 {[%clk 0:01:37]}  Rfe8 {[%clk 0:01:49]} 21. Kf1 {[%clk 0:01:24]}  Qh4 {[%clk 0:01:40]} 22. Bg5 {[%clk 0:01:00]}  Qg4 {[%clk 0:01:35]} 23. f3 {[%clk 0:00:56]}  Qc4+ {[%clk 0:01:32]} 24. Kg1 {[%clk 0:00:52]}  e4 {[%clk 0:01:13]} 25. f4 {[%clk 0:00:27]}  h6 {[%clk 0:00:57]} 26. Bh4 {[%clk 0:00:27]}  e3 {[%clk 0:00:57]} 27. Qa2 {[%clk 0:00:23]}  Qe4 {[%clk 0:00:54]} 28. Qb1 {[%clk 0:00:17]}  Qe6 {[%clk 0:00:43]} 29. f5 {[%clk 0:00:18]}  Qc6 {[%clk 0:00:43]} 30. Re2 {[%clk 0:00:15]}  c4 {[%clk 0:00:39]} 31. Qf1 {[%clk 0:00:15]}  Re4 {[%clk 0:00:36]} 32. Bg3 {[%clk 0:00:14]}  Rce8 {[%clk 0:00:36]} 33. a5 {[%clk 0:00:14]}  Nf6 {[%clk 0:00:32]} 34. Rae1 {[%clk 0:00:13]}  Qc5 {[%clk 0:00:30]} 35. Nf4 {[%clk 0:00:10]}  Qxa5 {[%clk 0:00:28]} 36. Nh3 {[%clk 0:00:09]}  Qc5 {[%clk 0:00:27]} 37. Kh1 {[%clk 0:00:08]}  Qa5 {[%clk 0:00:25]} 38. Ng1 {[%clk 0:00:09]}  Qb5 {[%clk 0:00:23]} 39. Nf3 {[%clk 0:00:09]}  a5 {[%clk 0:00:19]} 40. Nd4 {[%clk 0:00:09]}  Qb6 {[%clk 0:00:17]} 41. Bf4 {[%clk 0:00:09]}  Nd5 {[%clk 0:00:15]} 42. Bg3 {[%clk 0:00:08]}  Nf6 {[%clk 0:00:14]} 43. Bf4 {[%clk 0:00:07]}  a4 {[%clk 0:00:14]} 44. Rxe3 {[%clk 0:00:06]}  Rxe3 {[%clk 0:00:12]} 45. Rxe3 {[%clk 0:00:06]}  Rxe3 {[%clk 0:00:09]} 46. Bxe3 {[%clk 0:00:07]}  Qxb2 {[%clk 0:00:09]} 47. Nf3 {[%clk 0:00:03]}  Qxc3 {[%clk 0:00:07]} 48. Bd4 {[%clk 0:00:00]}  Qd3 {[%clk 0:00:07]} 0-1

[Event "January 9 Late 2024"]
[Site "https://www.chess.com"]
[Date "2024.01.10"]
[Round "3"]
[White "Banerjee, Supratit"]
[Black "Jazdanovs, Aleksandrs"]
[Result "1-0"]
[Board "147"]
[TimeControl "180+1"]
[WhiteFideId "2410079"]
[BlackFideId "11604492"]
[WhiteElo "2576"]
[BlackElo "2323"]
[WhiteTeam "SCO"]
[BlackTeam "LAT"]
[WhiteClock "0:01:30"]
[BlackClock "0:00:08"]

1. e4 {[%clk 0:03:00]}  c5 {[%clk 0:02:51]} 2. c3 {[%clk 0:03:00]}  d6 {[%clk 0:02:52]} 3. d4 {[%clk 0:03:01]}  Nf6 {[%clk 0:02:44]} 4. Bd3 {[%clk 0:03:00]}  cxd4 {[%clk 0:02:36]} 5. cxd4 {[%clk 0:03:00]}  Nbd7 {[%clk 0:02:36]} 6. Nf3 {[%clk 0:02:59]}  e5 {[%clk 0:02:34]} 7. O-O {[%clk 0:02:58]}  Be7 {[%clk 0:02:33]} 8. Nc3 {[%clk 0:02:58]}  O-O {[%clk 0:02:31]} 9. Re1 {[%clk 0:02:57]}  Re8 {[%clk 0:01:46]} 10. h3 {[%clk 0:02:56]}  b6 {[%clk 0:01:08]} 11. Be3 {[%clk 0:02:52]}  Bb7 {[%clk 0:01:08]} 12. Rc1 {[%clk 0:02:52]}  Rc8 {[%clk 0:01:08]} 13. Bb5 {[%clk 0:02:50]}  a6 {[%clk 0:01:06]} 14. Ba4 {[%clk 0:02:50]}  b5 {[%clk 0:01:06]} 15. Bb3 {[%clk 0:02:50]}  Nxe4 {[%clk 0:01:01]} 16. Nxe4 {[%clk 0:02:49]}  Bxe4 {[%clk 0:01:02]} 17. Rxc8 {[%clk 0:02:38]}  Qxc8 {[%clk 0:01:03]} 18. dxe5 {[%clk 0:02:38]}  Bxf3 {[%clk 0:00:58]} 19. Qxf3 {[%clk 0:02:27]}  Nxe5 {[%clk 0:00:58]} 20. Qd5 {[%clk 0:02:27]}  Qc6 {[%clk 0:00:51]} 21. Qxc6 {[%clk 0:02:24]}  Nxc6 {[%clk 0:00:52]} 22. Bd5 {[%clk 0:02:24]}  Nb8 {[%clk 0:00:45]} 23. Ba7 {[%clk 0:02:20]}  Kf8 {[%clk 0:00:44]} 24. Rc1 {[%clk 0:02:19]}  Nd7 {[%clk 0:00:36]} 25. Rc7 {[%clk 0:02:15]}  Nc5 {[%clk 0:00:29]} 26. Bc6 {[%clk 0:02:04]}  Rd8 {[%clk 0:00:20]} 27. Bb6 {[%clk 0:02:03]}  Rb8 {[%clk 0:00:17]} 28. Bxc5 {[%clk 0:02:00]}  dxc5 {[%clk 0:00:17]} 29. Ra7 {[%clk 0:01:59]}  b4 {[%clk 0:00:16]} 30. Rxa6 {[%clk 0:01:59]}  Rc8 {[%clk 0:00:17]} 31. Bd5 {[%clk 0:01:56]}  Rd8 {[%clk 0:00:17]} 32. Bc4 {[%clk 0:01:56]}  Rd6 {[%clk 0:00:17]} 33. Ra5 {[%clk 0:01:54]}  Rd8 {[%clk 0:00:17]} 34. g3 {[%clk 0:01:54]}  g6 {[%clk 0:00:16]} 35. Kg2 {[%clk 0:01:53]}  h5 {[%clk 0:00:16]} 36. Ra7 {[%clk 0:01:52]}  Rb8 {[%clk 0:00:16]} 37. Rc7 {[%clk 0:01:49]}  Re8 {[%clk 0:00:16]} 38. g4 {[%clk 0:01:48]}  hxg4 {[%clk 0:00:15]} 39. hxg4 {[%clk 0:01:48]}  Rd8 {[%clk 0:00:16]} 40. a4 {[%clk 0:01:45]}  bxa3 {[%clk 0:00:16]} 41. bxa3 {[%clk 0:01:45]}  Rd4 {[%clk 0:00:17]} 42. Bb5 {[%clk 0:01:43]}  Rxg4+ {[%clk 0:00:16]} 43. Kf3 {[%clk 0:01:43]}  Rf4+ {[%clk 0:00:14]} 44. Ke3 {[%clk 0:01:40]}  Rd4 {[%clk 0:00:13]} 45. a4 {[%clk 0:01:39]}  Bg5+ {[%clk 0:00:13]} 46. Ke2 {[%clk 0:01:39]}  Kg7 {[%clk 0:00:12]} 47. Rxc5 {[%clk 0:01:39]}  Be7 {[%clk 0:00:12]} 48. Rc7 {[%clk 0:01:39]}  Bb4 {[%clk 0:00:12]} 49. Bc4 {[%clk 0:01:38]}  Rf4 {[%clk 0:00:11]} 50. Bb3 {[%clk 0:01:37]}  g5 {[%clk 0:00:10]} 51. Rb7 {[%clk 0:01:37]}  Bc5 {[%clk 0:00:10]} 52. f3 {[%clk 0:01:36]}  g4 {[%clk 0:00:11]} 53. fxg4 {[%clk 0:01:36]}  Kf6 {[%clk 0:00:11]} 54. Rxf7+ {[%clk 0:01:35]}  Kg5 {[%clk 0:00:11]} 55. Rxf4 {[%clk 0:01:30]}  Kxf4 {[%clk 0:00:11]} 56. Be6 {[%clk 0:01:30]}  Bb6 {[%clk 0:00:11]} 57. Kd3 {[%clk 0:01:30]}  Ke5 {[%clk 0:00:08]} 58. Bf5 {[%clk 0:01:30]} 1-0

[Event "January 9 Late 2024"]
[Site "https://www.chess.com"]
[Date "2024.01.10"]
[Round "3"]
[White "Haack, Kevin"]
[Black "Tulchynskyi, Feliks"]
[Result "0-1"]
[Board "149"]
[TimeControl "180+1"]
[WhiteFideId "16228715"]
[BlackFideId "34127895"]
[WhiteElo "2308"]
[BlackElo "2571"]
[WhiteTeam "GER"]
[BlackTeam "UKR"]
[WhiteClock "0:01:29"]
[BlackClock "0:02:21"]

1. c4 {[%clk 0:03:00]}  Nf6 {[%clk 0:02:53]} 2. Nc3 {[%clk 0:02:58]}  e6 {[%clk 0:02:51]} 3. e4 {[%clk 0:02:57]}  d5 {[%clk 0:02:51]} 4. e5 {[%clk 0:02:56]}  d4 {[%clk 0:02:51]} 5. exf6 {[%clk 0:02:55]}  dxc3 {[%clk 0:02:50]} 6. bxc3 {[%clk 0:02:55]}  Qxf6 {[%clk 0:02:47]} 7. d4 {[%clk 0:02:56]}  c5 {[%clk 0:02:46]} 8. Nf3 {[%clk 0:02:52]}  cxd4 {[%clk 0:02:44]} 9. Be2 {[%clk 0:02:47]}  dxc3 {[%clk 0:02:36]} 10. Bg5 {[%clk 0:02:36]}  c2 {[%clk 0:02:32]} 11. Qd3 {[%clk 0:01:45]}  Qxa1+ {[%clk 0:02:29]} 12. Kd2 {[%clk 0:01:45]}  Bb4+ {[%clk 0:02:26]} 13. Ke3 {[%clk 0:01:45]}  c1=Q+ {[%clk 0:02:23]} 14. Rxc1 {[%clk 0:01:43]}  Qxc1+ {[%clk 0:02:24]} 15. Ke4 {[%clk 0:01:42]}  f5+ {[%clk 0:02:23]} 16. Ke5 {[%clk 0:01:29]}  Nc6# {[%clk 0:02:21]} 0-1

[Event "January 9 Late 2024"]
[Site "https://www.chess.com"]
[Date "2024.01.10"]
[Round "3"]
[White "Ambartsumova, Karina"]
[Black "Graham, Nathaniel"]
[Result "1-0"]
[Board "150"]
[TimeControl "180+1"]
[WhiteFideId "4166299"]
[BlackFideId "2007983"]
[WhiteElo "2571"]
[BlackElo "2315"]
[WhiteTeam "RUS"]
[BlackTeam "USA"]
[WhiteClock "0:01:51"]
[BlackClock "0:00:00"]

1. d4 {[%clk 0:03:00]}  d5 {[%clk 0:02:59]} 2. c4 {[%clk 0:03:01]}  c6 {[%clk 0:02:59]} 3. Nf3 {[%clk 0:03:01]}  Nf6 {[%clk 0:02:59]} 4. g3 {[%clk 0:03:01]}  Bf5 {[%clk 0:02:58]} 5. Qb3 {[%clk 0:03:01]}  Qb6 {[%clk 0:02:54]} 6. Nc3 {[%clk 0:03:01]}  e6 {[%clk 0:02:53]} 7. c5 {[%clk 0:03:01]}  Qxb3 {[%clk 0:02:46]} 8. axb3 {[%clk 0:03:02]}  Nbd7 {[%clk 0:02:42]} 9. b4 {[%clk 0:03:02]}  e5 {[%clk 0:02:40]} 10. dxe5 {[%clk 0:02:56]}  Ne4 {[%clk 0:02:24]} 11. Bf4 {[%clk 0:02:56]}  g6 {[%clk 0:02:05]} 12. Nd4 {[%clk 0:02:50]}  Bg7 {[%clk 0:01:43]} 13. Nxf5 {[%clk 0:02:50]}  gxf5 {[%clk 0:01:44]} 14. Bh3 {[%clk 0:02:48]}  Nxe5 {[%clk 0:01:34]} 15. Bxf5 {[%clk 0:02:41]}  Nxc3 {[%clk 0:01:09]} 16. bxc3 {[%clk 0:02:42]}  O-O {[%clk 0:00:58]} 17. O-O {[%clk 0:02:37]}  Rfe8 {[%clk 0:00:56]} 18. Rfe1 {[%clk 0:02:26]}  Re7 {[%clk 0:00:38]} 19. Kg2 {[%clk 0:02:24]}  a6 {[%clk 0:00:37]} 20. Rad1 {[%clk 0:02:13]}  Rae8 {[%clk 0:00:31]} 21. Bg5 {[%clk 0:01:58]}  Rc7 {[%clk 0:00:00]} 22. e4 {[%clk 0:01:51]} 1-0

[Event "January 9 Late 2024"]
[Site "https://www.chess.com"]
[Date "2024.01.10"]
[Round "3"]
[White "Olsson, William"]
[Black "Sarkar, Justin"]
[Result "1-0"]
[Board "151"]
[TimeControl "180+1"]
[WhiteFideId "1741721"]
[BlackFideId "2010011"]
[WhiteElo "2568"]
[BlackElo "2305"]
[WhiteTeam "SWE"]
[BlackTeam "USA"]
[WhiteClock "0:01:55"]
[BlackClock "0:00:20"]

1. c4 {[%clk 0:03:00]}  Nf6 {[%clk 0:02:45]} 2. g3 {[%clk 0:02:38]}  d6 {[%clk 0:02:34]} 3. Bg2 {[%clk 0:02:38]}  g6 {[%clk 0:02:25]} 4. Nc3 {[%clk 0:02:38]}  Bg7 {[%clk 0:02:23]} 5. Nf3 {[%clk 0:02:38]}  O-O {[%clk 0:02:06]} 6. O-O {[%clk 0:02:32]}  e5 {[%clk 0:01:52]} 7. d4 {[%clk 0:02:25]}  exd4 {[%clk 0:01:33]} 8. Nxd4 {[%clk 0:02:25]}  Nbd7 {[%clk 0:01:33]} 9. e4 {[%clk 0:02:25]}  Nc5 {[%clk 0:01:24]} 10. h3 {[%clk 0:02:24]}  a5 {[%clk 0:01:19]} 11. Be3 {[%clk 0:02:18]}  Re8 {[%clk 0:01:16]} 12. Qc2 {[%clk 0:02:17]}  c6 {[%clk 0:00:57]} 13. b3 {[%clk 0:02:14]}  Qe7 {[%clk 0:00:52]} 14. Rae1 {[%clk 0:02:15]}  Nfxe4 {[%clk 0:00:41]} 15. Nxe4 {[%clk 0:02:06]}  Nxe4 {[%clk 0:00:40]} 16. Bxe4 {[%clk 0:01:56]}  Qxe4 {[%clk 0:00:20]} 17. Bd2 {[%clk 0:01:55]} 1-0

[Event "January 9 Late 2024"]
[Site "https://www.chess.com"]
[Date "2024.01.10"]
[Round "3"]
[White "Kargosha, Bahman"]
[Black "Potapova, Margarita"]
[Result "1-0"]
[Board "153"]
[TimeControl "180+1"]
[WhiteFideId "12503452"]
[BlackFideId "14126869"]
[WhiteElo "2298"]
[BlackElo "2565"]
[WhiteTeam "AUS"]
[BlackTeam "RUS"]
[WhiteClock "0:00:09"]
[BlackClock "0:00:02"]

1. d4 {[%clk 0:03:00]}  Nf6 {[%clk 0:02:57]} 2. c4 {[%clk 0:03:01]}  g6 {[%clk 0:02:57]} 3. Nc3 {[%clk 0:03:01]}  Bg7 {[%clk 0:02:57]} 4. e4 {[%clk 0:03:01]}  O-O {[%clk 0:02:57]} 5. Nf3 {[%clk 0:03:02]}  d6 {[%clk 0:02:54]} 6. h3 {[%clk 0:03:02]}  e5 {[%clk 0:02:46]} 7. d5 {[%clk 0:03:03]}  Nh5 {[%clk 0:02:46]} 8. g3 {[%clk 0:03:02]}  f5 {[%clk 0:02:46]} 9. exf5 {[%clk 0:03:03]}  gxf5 {[%clk 0:02:46]} 10. Nh4 {[%clk 0:03:03]}  Nf4 {[%clk 0:02:46]} 11. Be3 {[%clk 0:03:03]}  Bd7 {[%clk 0:02:46]} 12. Qd2 {[%clk 0:03:03]}  Na6 {[%clk 0:02:45]} 13. Rg1 {[%clk 0:02:58]}  Kh8 {[%clk 0:02:35]} 14. O-O-O {[%clk 0:02:50]}  Nc5 {[%clk 0:02:34]} 15. gxf4 {[%clk 0:02:37]}  Qxh4 {[%clk 0:02:33]} 16. Rxg7 {[%clk 0:02:37]}  Kxg7 {[%clk 0:02:29]} 17. fxe5 {[%clk 0:02:38]}  f4 {[%clk 0:01:17]} 18. Bd4 {[%clk 0:02:32]}  Bf5 {[%clk 0:01:10]} 19. e6+ {[%clk 0:02:27]}  Kh6 {[%clk 0:01:07]} 20. f3 {[%clk 0:02:07]}  Rg8 {[%clk 0:01:00]} 21. b4 {[%clk 0:02:04]}  b6 {[%clk 0:00:52]} 22. bxc5 {[%clk 0:01:23]}  bxc5 {[%clk 0:00:53]} 23. Ne2 {[%clk 0:01:24]}  cxd4 {[%clk 0:00:44]} 24. Nxd4 {[%clk 0:01:12]}  Bg6 {[%clk 0:00:44]} 25. Bd3 {[%clk 0:01:10]}  Rab8 {[%clk 0:00:41]} 26. Bf5 {[%clk 0:00:55]}  Rb6 {[%clk 0:00:27]} 27. Rg1 {[%clk 0:00:41]}  Rgb8 {[%clk 0:00:24]} 28. Bxg6 {[%clk 0:00:41]}  hxg6 {[%clk 0:00:24]} 29. Nb3 {[%clk 0:00:35]}  Qf6 {[%clk 0:00:20]} 30. Rg4 {[%clk 0:00:33]}  g5 {[%clk 0:00:19]} 31. h4 {[%clk 0:00:33]}  gxh4 {[%clk 0:00:07]} 32. Rxf4 {[%clk 0:00:32]}  Qg5 {[%clk 0:00:08]} 33. Rxh4+ {[%clk 0:00:31]}  Kg6 {[%clk 0:00:06]} 34. Rg4 {[%clk 0:00:31]}  Qxg4 {[%clk 0:00:07]} 35. fxg4 {[%clk 0:00:31]}  Rb4 {[%clk 0:00:07]} 36. Qd3+ {[%clk 0:00:30]}  Kg7 {[%clk 0:00:06]} 37. Kc2 {[%clk 0:00:27]}  a5 {[%clk 0:00:05]} 38. a3 {[%clk 0:00:18]}  R4b6 {[%clk 0:00:05]} 39. Qf3 {[%clk 0:00:16]}  a4 {[%clk 0:00:04]} 40. Qf7+ {[%clk 0:00:15]}  Kh6 {[%clk 0:00:04]} 41. Nd4 {[%clk 0:00:14]}  Rb2+ {[%clk 0:00:03]} 42. Kd3 {[%clk 0:00:14]}  Kg5 {[%clk 0:00:02]} 43. Qf5+ {[%clk 0:00:14]}  Kh4 {[%clk 0:00:03]} 44. Qh5+ {[%clk 0:00:14]}  Kg3 {[%clk 0:00:03]} 45. Ne2+ {[%clk 0:00:13]}  Kf3 {[%clk 0:00:03]} 46. Qh3+ {[%clk 0:00:13]}  Kf2 {[%clk 0:00:03]} 47. Qe3+ {[%clk 0:00:13]}  Kg2 {[%clk 0:00:03]} 48. Nf4+ {[%clk 0:00:12]}  Kf1 {[%clk 0:00:02]} 49. Qf3+ {[%clk 0:00:11]}  Ke1 {[%clk 0:00:02]} 50. Ng2+ {[%clk 0:00:11]}  Rxg2 {[%clk 0:00:03]} 51. Qxg2 {[%clk 0:00:11]}  Rb3+ {[%clk 0:00:03]} 52. Kd4 {[%clk 0:00:11]}  Kd1 {[%clk 0:00:01]} 53. e7 {[%clk 0:00:10]}  Kc1 {[%clk 0:00:01]} 54. e8=Q {[%clk 0:00:09]}  Kb1 {[%clk 0:00:02]} 55. Qe1# {[%clk 0:00:09]} 1-0

[Event "January 9 Late 2024"]
[Site "https://www.chess.com"]
[Date "2024.01.09"]
[Round "3"]
[White "Hajiyev, Kanan"]
[Black "Kaganskiy, Gleb"]
[Result "1-0"]
[Board "155"]
[TimeControl "180+1"]
[WhiteFideId "13404148"]
[BlackFideId "4132025"]
[WhiteElo "2561"]
[BlackElo "2279"]
[WhiteTeam "AZE"]
[BlackTeam "ISR"]
[WhiteClock "0:00:30"]
[BlackClock "0:00:40"]

1. d4 {[%clk 0:02:55]}  d5 {[%clk 0:02:53]} 2. Nf3 {[%clk 0:02:56]}  Nf6 {[%clk 0:02:52]} 3. c4 {[%clk 0:02:56]}  e6 {[%clk 0:02:51]} 4. cxd5 {[%clk 0:02:57]}  exd5 {[%clk 0:02:51]} 5. Nc3 {[%clk 0:02:58]}  c6 {[%clk 0:02:51]} 6. Qc2 {[%clk 0:02:58]}  Be7 {[%clk 0:02:51]} 7. Bf4 {[%clk 0:02:58]}  O-O {[%clk 0:02:47]} 8. e3 {[%clk 0:02:58]}  Bg4 {[%clk 0:02:45]} 9. Ne5 {[%clk 0:02:58]}  Bh5 {[%clk 0:02:42]} 10. Bd3 {[%clk 0:02:54]}  Bg6 {[%clk 0:02:41]} 11. Nxg6 {[%clk 0:02:54]}  hxg6 {[%clk 0:02:42]} 12. h4 {[%clk 0:02:54]}  Re8 {[%clk 0:02:37]} 13. O-O-O {[%clk 0:02:47]}  Nbd7 {[%clk 0:02:36]} 14. Kb1 {[%clk 0:02:47]}  b5 {[%clk 0:02:20]} 15. Ne2 {[%clk 0:02:17]}  Nb6 {[%clk 0:02:13]} 16. Qxc6 {[%clk 0:01:58]}  Nc4 {[%clk 0:02:14]} 17. Qc7 {[%clk 0:01:58]}  Qxc7 {[%clk 0:02:00]} 18. Bxc7 {[%clk 0:01:59]}  Ne4 {[%clk 0:01:55]} 19. Bxe4 {[%clk 0:01:54]}  dxe4 {[%clk 0:01:56]} 20. Ng3 {[%clk 0:01:40]}  f5 {[%clk 0:01:54]} 21. h5 {[%clk 0:01:40]}  Kf7 {[%clk 0:01:49]} 22. b3 {[%clk 0:01:25]}  Na3+ {[%clk 0:01:44]} 23. Kb2 {[%clk 0:01:26]}  Rac8 {[%clk 0:01:42]} 24. Rc1 {[%clk 0:01:24]}  Bb4 {[%clk 0:01:21]} 25. hxg6+ {[%clk 0:00:51]}  Kxg6 {[%clk 0:01:20]} 26. Rc6+ {[%clk 0:00:52]}  Kf7 {[%clk 0:01:03]} 27. Nxf5 {[%clk 0:00:46]}  Rh8 {[%clk 0:01:03]} 28. Rhc1 {[%clk 0:00:42]}  Rh5 {[%clk 0:00:49]} 29. g4 {[%clk 0:00:39]}  Rh3 {[%clk 0:00:47]} 30. Bd6 {[%clk 0:00:34]}  Rxc6 {[%clk 0:00:48]} 31. Rxc6 {[%clk 0:00:33]}  Rh1 {[%clk 0:00:46]} 32. Bxb4 {[%clk 0:00:30]}  Rb1+ {[%clk 0:00:40]} 33. Kxa3 {[%clk 0:00:30]} 1-0

[Event "January 9 Late 2024"]
[Site "https://www.chess.com"]
[Date "2024.01.10"]
[Round "3"]
[White "Kandil, Ahmed"]
[Black "Kornyukov, Alexey"]
[Result "1-0"]
[Board "156"]
[TimeControl "180+1"]
[WhiteFideId "10628401"]
[BlackFideId "4150457"]
[WhiteElo "2559"]
[BlackElo "2263"]
[WhiteTeam "EGY"]
[BlackTeam "RUS"]
[WhiteClock "0:01:12"]
[BlackClock "0:00:00"]

1. e4 {[%clk 0:02:57]}  c5 {[%clk 0:02:59]} 2. Nf3 {[%clk 0:02:57]}  Nc6 {[%clk 0:02:58]} 3. Bb5 {[%clk 0:02:57]}  e6 {[%clk 0:02:58]} 4. O-O {[%clk 0:02:56]}  Nge7 {[%clk 0:02:57]} 5. Re1 {[%clk 0:02:56]}  a6 {[%clk 0:02:53]} 6. Bf1 {[%clk 0:02:54]}  d5 {[%clk 0:02:43]} 7. exd5 {[%clk 0:02:53]}  Nxd5 {[%clk 0:02:40]} 8. d4 {[%clk 0:02:52]}  Nf6 {[%clk 0:02:34]} 9. Be3 {[%clk 0:02:48]}  cxd4 {[%clk 0:02:32]} 10. Nxd4 {[%clk 0:02:49]}  Bd7 {[%clk 0:02:26]} 11. Nc3 {[%clk 0:02:39]}  Be7 {[%clk 0:02:21]} 12. Qe2 {[%clk 0:02:33]}  Qc7 {[%clk 0:02:08]} 13. Rad1 {[%clk 0:02:30]}  O-O {[%clk 0:02:02]} 14. Qf3 {[%clk 0:02:26]}  Rac8 {[%clk 0:01:56]} 15. Bd3 {[%clk 0:02:18]}  Ne5 {[%clk 0:01:40]} 16. Qe2 {[%clk 0:02:09]}  Nxd3 {[%clk 0:01:37]} 17. Qxd3 {[%clk 0:02:09]}  Rfd8 {[%clk 0:01:37]} 18. Bg5 {[%clk 0:02:00]}  h6 {[%clk 0:01:23]} 19. Bh4 {[%clk 0:01:57]}  e5 {[%clk 0:01:14]} 20. Bg3 {[%clk 0:01:54]}  Bd6 {[%clk 0:00:51]} 21. Nf5 {[%clk 0:01:52]}  Bxf5 {[%clk 0:00:33]} 22. Qxf5 {[%clk 0:01:53]}  Re8 {[%clk 0:00:30]} 23. Bh4 {[%clk 0:01:45]}  Re6 {[%clk 0:00:23]} 24. Bxf6 {[%clk 0:01:36]}  Rxf6 {[%clk 0:00:24]} 25. Qe4 {[%clk 0:01:36]}  Bc5 {[%clk 0:00:17]} 26. Rd2 {[%clk 0:01:30]}  Qc6 {[%clk 0:00:12]} 27. Qxc6 {[%clk 0:01:26]}  Rcxc6 {[%clk 0:00:12]} 28. Ne4 {[%clk 0:01:24]}  Rfe6 {[%clk 0:00:11]} 29. Nxc5 {[%clk 0:01:19]}  Rxc5 {[%clk 0:00:11]} 30. c3 {[%clk 0:01:20]}  Rc7 {[%clk 0:00:10]} 31. Rd8+ {[%clk 0:01:19]}  Kh7 {[%clk 0:00:10]} 32. Rd5 {[%clk 0:01:20]}  Rce7 {[%clk 0:00:10]} 33. Kf1 {[%clk 0:01:18]}  f5 {[%clk 0:00:08]} 34. f4 {[%clk 0:01:15]}  exf4 {[%clk 0:00:07]} 35. Rxe6 {[%clk 0:01:14]}  Rxe6 {[%clk 0:00:07]} 36. Rxf5 {[%clk 0:01:14]}  Re4 {[%clk 0:00:06]} 37. Kf2 {[%clk 0:01:12]}  Kg6 {[%clk 0:00:00]} 38. Rd5 {[%clk 0:01:12]} 1-0

[Event "January 9 Late 2024"]
[Site "https://www.chess.com"]
[Date "2024.01.09"]
[Round "3"]
[White "Harish, Neeraj"]
[Black "Carnicelli, Valerio"]
[Result "0-1"]
[Board "157"]
[TimeControl "180+1"]
[WhiteFideId "30958130"]
[BlackFideId "856185"]
[WhiteElo "2260"]
[BlackElo "2559"]
[WhiteTeam "USA"]
[BlackTeam "ITA"]
[WhiteClock "0:00:02"]
[BlackClock "0:00:10"]

1. e4 {[%clk 0:03:00]}  c5 {[%clk 0:02:59]} 2. Nf3 {[%clk 0:02:59]}  d6 {[%clk 0:02:59]} 3. d4 {[%clk 0:03:00]}  cxd4 {[%clk 0:02:59]} 4. Nxd4 {[%clk 0:03:01]}  Nf6 {[%clk 0:02:59]} 5. Nc3 {[%clk 0:03:01]}  a6 {[%clk 0:03:00]} 6. Be3 {[%clk 0:03:01]}  e5 {[%clk 0:02:59]} 7. Nb3 {[%clk 0:03:00]}  Be7 {[%clk 0:02:58]} 8. f3 {[%clk 0:02:59]}  h5 {[%clk 0:02:57]} 9. Qd2 {[%clk 0:03:00]}  Be6 {[%clk 0:02:55]} 10. Nd5 {[%clk 0:02:45]}  Bxd5 {[%clk 0:02:52]} 11. exd5 {[%clk 0:02:46]}  Nbd7 {[%clk 0:02:49]} 12. O-O-O {[%clk 0:02:40]}  b5 {[%clk 0:02:43]} 13. Na5 {[%clk 0:02:27]}  Rc8 {[%clk 0:02:23]} 14. Nc6 {[%clk 0:02:20]}  Qc7 {[%clk 0:02:24]} 15. Nxe7 {[%clk 0:02:13]}  Kxe7 {[%clk 0:02:25]} 16. Kb1 {[%clk 0:02:08]}  Nb6 {[%clk 0:02:24]} 17. Be2 {[%clk 0:02:07]}  Nc4 {[%clk 0:02:09]} 18. Bxc4 {[%clk 0:02:03]}  Qxc4 {[%clk 0:02:10]} 19. c3 {[%clk 0:01:53]}  a5 {[%clk 0:02:05]} 20. f4 {[%clk 0:01:53]}  e4 {[%clk 0:01:54]} 21. Rhe1 {[%clk 0:01:38]}  Rhe8 {[%clk 0:01:49]} 22. Bd4 {[%clk 0:01:23]}  Kd7 {[%clk 0:01:48]} 23. Bxf6 {[%clk 0:01:09]}  gxf6 {[%clk 0:01:47]} 24. Qd4 {[%clk 0:01:10]}  Qxd4 {[%clk 0:01:43]} 25. Rxd4 {[%clk 0:01:11]}  f5 {[%clk 0:01:44]} 26. Kc2 {[%clk 0:01:04]}  Rg8 {[%clk 0:01:40]} 27. Re2 {[%clk 0:00:58]}  Rg4 {[%clk 0:01:37]} 28. g3 {[%clk 0:00:56]}  h4 {[%clk 0:01:36]} 29. Re3 {[%clk 0:00:47]}  Rcg8 {[%clk 0:01:36]} 30. a4 {[%clk 0:00:40]}  hxg3 {[%clk 0:01:22]} 31. hxg3 {[%clk 0:00:40]}  Rxg3 {[%clk 0:01:20]} 32. Rxg3 {[%clk 0:00:39]}  Rxg3 {[%clk 0:01:21]} 33. axb5 {[%clk 0:00:40]}  Kc7 {[%clk 0:00:41]} 34. Rc4+ {[%clk 0:00:38]}  Kb6 {[%clk 0:00:40]} 35. Rc6+ {[%clk 0:00:38]}  Kxb5 {[%clk 0:00:39]} 36. Rxd6 {[%clk 0:00:26]}  Rg2+ {[%clk 0:00:34]} 37. Kb3 {[%clk 0:00:24]}  a4+ {[%clk 0:00:35]} 38. Ka3 {[%clk 0:00:21]}  Rf2 {[%clk 0:00:17]} 39. Rf6 {[%clk 0:00:19]}  Rxf4 {[%clk 0:00:15]} 40. Rxf7 {[%clk 0:00:20]}  e3 {[%clk 0:00:13]} 41. d6 {[%clk 0:00:18]}  Kc6 {[%clk 0:00:13]} 42. d7 {[%clk 0:00:18]}  Kc7 {[%clk 0:00:13]} 43. Rh7 {[%clk 0:00:04]}  e2 {[%clk 0:00:11]} 44. Re7 {[%clk 0:00:02]}  Re4 {[%clk 0:00:10]} 0-1